lending/lending_fUSD_20260325
["ID","MTS","AMOUNT","RATE_DAILY","PERIOD"]
[408896196,1774405847705,-2000.0,0.000159,2]
[408896197,1774405847714,-180.66500622,0.000159,2]
[408896198,1774405847724,-999.0,0.000159,2]
[408896199,1774405847733,-1259.69345631,0.000159,2]
[408896200,1774405847742,-5888.0,0.00015902,2]
[408896201,1774405847751,-157.1491539,0.00015902,2]
[408896202,1774405847760,-151.0,0.00015914,2]
[408896203,1774405847770,-151.0,0.00015914,2]
[408896204,1774405847779,-151.0,0.00015914,2]
[408896205,1774405847788,-1523.0,0.00015914,2]
[408896206,1774405847798,-160.0,0.00015914,2]
[408896207,1774405847807,-162.00166478,0.00015914,2]
[408896208,1774405847816,-1523.0,0.00015914,2]
[408896209,1774405847826,-166.02289032,0.00015914,2]
[408896210,1774405847835,-1523.0,0.00015914,2]
[408896211,1774405847844,-1523.0,0.00015914,2]
[408896212,1774405847853,-1557.66407307,0.00015914,2]
[408896213,1774405847865,-150.0,0.00015945,2]
[408896214,1774405847886,-1264.186,0.00015964,2]
[408896215,1774405847908,-150.73,0.00015964,2]
[408896216,1774405847922,-1216.0,0.00015964,2]
[408896217,1774405847932,-929.964,0.00015964,2]
[408896218,1774405847946,-1045.0,0.00015964,2]
[408896219,1774405847956,-1345.0,0.00015964,2]
[408896220,1774405847965,-216.75257732,0.00015964,2]
[408896221,1774405847975,-2500.0,0.00015964,2]
[408896222,1774405847984,-2500.0,0.00015964,2]
[408896223,1774405847993,-217.0,0.00015986,2]
[408896224,1774405848003,-272.0,0.00015986,2]
[408896225,1774405848012,-200.0,0.00015986,2]
[408896226,1774405848021,-200.0,0.00015986,2]
[408896227,1774405848031,-224.45,0.00015986,2]
[408896228,1774405848040,-237.5,0.00015986,2]
[408896229,1774405848049,-250.0,0.00015986,2]
[408896230,1774405848058,-196.331,0.00015986,2]
[408896231,1774405848068,-162.601,0.00015986,2]
[408896232,1774405848077,-250.0,0.00015986,2]
[408896233,1774405848086,-193.264,0.00015986,2]
[408896234,1774405848096,-165.867,0.00015986,2]
[408896235,1774405848106,-250.0,0.00015986,2]
[408896236,1774405848115,-214.603,0.00015986,2]
[408896237,1774405848124,-179.0,0.00015986,2]
[408896238,1774405848134,-238.832,0.00015986,2]
[408896239,1774405848143,-189.14027323,0.0001599,2]
[408896240,1774405848152,-189.14027323,0.0001599,2]
[408896241,1774405848161,-177.91892,0.00015997,2]
[408896242,1774405848171,-671.64340058,0.00015999,2]
[408896243,1774405848180,-236.39360268,0.00015999,2]
[408896244,1774405848189,-246.52573174,0.00015999,2]
[408896245,1774405848199,-500.0,0.00015999,2]
[408896246,1774405848208,-500.0,0.00015999,2]
[408896247,1774405848218,-500.0,0.00015999,2]
[408896248,1774405848227,-500.0,0.00015999,2]
[408896249,1774405848236,-500.0,0.00015999,2]
[408896250,1774405848246,-500.0,0.00015999,2]
[408896251,1774405848255,-500.0,0.00015999,2]
[408896252,1774405848264,-500.0,0.00015999,2]
[408896253,1774405848273,-214.21589734,0.00015999,2]
[408896254,1774405848283,-500.0,0.00015999,2]
[408896255,1774405848293,-500.0,0.00015999,2]
[408896256,1774405848302,-500.0,0.00015999,2]
[408896257,1774405848311,-500.0,0.00015999,2]
[408896258,1774405848321,-500.0,0.00015999,2]
[408896259,1774405848330,-500.0,0.00015999,2]
[408896260,1774405848339,-500.0,0.00015999,2]
[408896261,1774405848349,-500.0,0.00015999,2]
[408896262,1774405848359,-500.0,0.00015999,2]
[408896263,1774405848367,-500.0,0.00015999,2]
[408896264,1774405848381,-500.0,0.00015999,2]
[408896265,1774405848389,-500.0,0.00015999,2]
[408896266,1774405848398,-500.0,0.00015999,2]
[408896267,1774405848407,-500.0,0.00015999,2]
[408896268,1774405848417,-500.0,0.00015999,2]
[408896269,1774405848426,-500.0,0.00015999,2]
[408896270,1774405848436,-500.0,0.00015999,2]
[408896271,1774405848446,-500.0,0.00015999,2]
[408896272,1774405848455,-500.0,0.00015999,2]
[408896273,1774405848464,-500.0,0.00015999,2]
[408896274,1774405848473,-283.26394386,0.00015999,2]
[408896275,1774405848490,-216.73605614,0.00015999,2]
[408896276,1774405848499,-500.0,0.00015999,2]
[408896277,1774405848508,-500.0,0.00015999,2]
[408896278,1774405848517,-500.0,0.00015999,2]
[408896279,1774405848526,-52.67050106,0.00015999,2]
[408896280,1774405848537,-447.32949894,0.00015999,2]
[408896281,1774405848546,-33.71836051,0.00015999,2]
[408896282,1774405848557,-466.28163949,0.00015999,2]
[408896283,1774405848566,-1.45942745,0.00015999,2]
[408896285,1774406512825,-250.0,0.00013,2]
[408896286,1774406512855,-311.0,0.00013,2]
[408896287,1774406512886,-499.08,0.0001309,2]
[408896288,1774406512917,-329.77,0.0001316,2]
[408896289,1774406512946,-1600.0,0.0001318,2]
[408896290,1774406512972,-168.64923651,0.00013418,2]
[408896291,1774406512998,-307.67265379,0.00013438,2]
[408896292,1774406513023,-1200.0,0.00013499,2]
[408896293,1774406513052,-218.37176394,0.000135,2]
[408896294,1774406513215,-511.29119521,0.000135,2]
[408896295,1774406513244,-364.83147957,0.000135,2]
[408896296,1774406513273,-449.28809529,0.000135,2]
[408896297,1774406513301,-548.98461537,0.000135,2]
[408896298,1774406513328,-150.0,0.00013517,2]
[408896299,1774406513353,-238.722,0.00013517,2]
[408896300,1774406513721,-4270.89,0.00013517,2]
[408896301,1774406513813,-1458.23,0.00013517,2]
[408896302,1774406514306,-1104.73766078,0.00013518,2]
[408896303,1774406514319,-7083.55,0.00013518,2]
[408896304,1774406514343,-6904.50840926,0.00013518,2]
[408896305,1774406514352,-3095.50159074,0.00013518,2]
[408896306,1774406515739,-4495.10883249,0.00013518,2]
[408896307,1774406515783,-1009.79233502,0.00013518,2]
[408896308,1774406515847,-2500.00244547,0.00013518,2]
[408896309,1774406515875,-150.0,0.000136,2]
[408896310,1774406515903,-543.98,0.00013617,2]
[408896311,1774406515931,-500.0,0.00013617,2]
[408896312,1774406515966,-500.0,0.00013617,2]
[408896313,1774406516000,-500.0,0.00013617,2]
[408896314,1774406516033,-112.04510906,0.00013617,2]
[408896315,1774406516191,-387.95489094,0.00013617,2]
[408896317,1774406740127,-1155.70730808,0.00013517,2]
[408896318,1774406840078,-44.29269192,0.00013517,2]
[408896319,1774406840100,-150.0,0.00013517,2]
[408896320,1774406840122,-300.0,0.00013517,2]
[408896321,1774406840143,-500.0,0.00013518,2]
[408896322,1774406840164,-125.69599286,0.00013518,2]
[408896327,1774407031647,-300.0,0.00012945,2]
[408896328,1774407031657,-230.12669042,0.00012945,2]
[408896329,1774407031670,-969.87330958,0.00012945,2]
[408896330,1774407031680,-310.0,0.00012945,2]
[408896331,1774407031692,-966.00794266,0.00012946,2]
[408896333,1774407031712,-351.95748645,0.00012946,2]
[408896336,1774407031727,-454.11874776,0.00012946,2]
[408896339,1774407031751,-6262.91342666,0.00012946,2]
[408896349,1774407037546,-7303.35412711,0.00012946,2]
[408896350,1774407037653,-39859.2858797,0.00012946,2]
[408896394,1774407039823,-500.0,0.00012946,2]
[408896395,1774407039836,-112749.70238966,0.00012946,2]
[408896396,1774407039845,-166.66,0.00013334,2]
[408896397,1774407039854,-150.0,0.00013517,2]
[408896398,1774407039864,-374.30400714,0.00013518,2]
[408896399,1774407039874,-500.0,0.00013518,2]
[408896400,1774407039883,-500.0,0.00013518,2]
[408896401,1774407039893,-7740.36248247,0.00013518,2]
[408896402,1774407039902,-13583.516463,0.00013518,2]
[408896403,1774407039911,-4146.4195,0.00013518,2]
[408896404,1774407039921,-37656.4887,0.00013518,2]
[408896405,1774407039931,-418.0,0.000136,2]
[408896406,1774407039940,-200.0,0.0001361,2]
[408896407,1774407039950,-500.0,0.0001361,2]
[408896408,1774407039959,-500.0,0.0001361,2]
[408896409,1774407039968,-500.0,0.0001361,2]
[408896410,1774407039977,-500.0,0.0001361,2]
[408896411,1774407039986,-500.0,0.0001361,2]
[408896412,1774407039996,-500.0,0.0001361,2]
[408896413,1774407040005,-500.0,0.0001361,2]
[408896414,1774407040018,-500.0,0.0001361,2]
[408896415,1774407040028,-500.0,0.0001361,2]
[408896416,1774407040037,-500.0,0.0001361,2]
[408896417,1774407040047,-500.0,0.0001361,2]
[408896418,1774407040056,-151.0,0.0001361,2]
[408896419,1774407040067,-151.0,0.0001361,2]
[408896420,1774407040076,-151.0,0.0001361,2]
[408896421,1774407040086,-151.0,0.0001361,2]
[408896422,1774407040097,-151.0,0.0001361,2]
[408896423,1774407040106,-151.0,0.0001361,2]
[408896424,1774407040117,-151.0,0.0001361,2]
[408896425,1774407040127,-151.0,0.0001361,2]
[408896426,1774407040136,-151.0,0.0001361,2]
[408896427,1774407040146,-151.0,0.0001361,2]
[408896428,1774407040156,-151.0,0.0001361,2]
[408896429,1774407040166,-500.0,0.00013617,2]
[408896430,1774407040177,-514.34144085,0.00013617,2]
[408896431,1774407040186,-514.34144085,0.00013617,2]
[408896432,1774407040196,-514.34144085,0.00013617,2]
[408896433,1774407040206,-514.34144085,0.00013617,2]
[408896434,1774407040220,-514.34144085,0.00013617,2]
[408896435,1774407040229,-514.34144085,0.00013617,2]
[408896436,1774407040239,-514.34144085,0.00013617,2]
[408896437,1774407040250,-514.34144085,0.00013617,2]
[408896438,1774407040260,-514.34144085,0.00013617,2]
[408896439,1774407040270,-514.34144085,0.00013617,2]
[408896440,1774407040280,-514.34144085,0.00013617,2]
[408896441,1774407040290,-514.34144085,0.00013617,2]
[408896442,1774407040300,-514.34144085,0.00013617,2]
[408896443,1774407040310,-514.34144085,0.00013617,2]
[408896444,1774407040320,-514.34144085,0.00013617,2]
[408896445,1774407040330,-514.34144085,0.00013617,2]
[408896446,1774407040340,-514.34144085,0.00013617,2]
[408896447,1774407040349,-514.34144085,0.00013617,2]
[408896448,1774407040359,-514.34144085,0.00013617,2]
[408896449,1774407040370,-514.34144085,0.00013617,2]
[408896450,1774407040380,-514.34144085,0.00013617,2]
[408896451,1774407040389,-514.34144085,0.00013617,2]
[408896452,1774407040399,-514.34144085,0.00013617,2]
[408896453,1774407040412,-514.34144085,0.00013617,2]
[408896454,1774407040422,-514.34144085,0.00013617,2]
[408896455,1774407040431,-514.34144085,0.00013617,2]
[408896456,1774407040442,-514.34144085,0.00013617,2]
[408896457,1774407040452,-514.34144085,0.00013617,2]
[408896458,1774407040462,-514.34144085,0.00013617,2]
[408896459,1774407040472,-514.34144085,0.00013617,2]
[408896460,1774407040482,-514.34144085,0.00013617,2]
[408896461,1774407040491,-514.34144085,0.00013617,2]
[408896462,1774407040501,-514.34144085,0.00013617,2]
[408896463,1774407040512,-514.34144085,0.00013617,2]
[408896464,1774407040523,-514.34144085,0.00013617,2]
[408896468,1774407040908,-514.34144085,0.00013617,2]
[408896469,1774407040918,-514.34144085,0.00013617,2]
[408896470,1774407040928,-514.34144085,0.00013617,2]
[408896471,1774407040938,-514.34144085,0.00013617,2]
[408896472,1774407040948,-514.34144085,0.00013617,2]
[408896473,1774407040957,-514.34144085,0.00013617,2]
[408896474,1774407040967,-514.34144085,0.00013617,2]
[408896475,1774407040976,-514.34144085,0.00013617,2]
[408896476,1774407040986,-514.34144085,0.00013617,2]
[408896477,1774407040996,-514.34144085,0.00013617,2]
[408896478,1774407041006,-514.34144085,0.00013617,2]
[408896479,1774407041015,-514.34144085,0.00013617,2]
[408896480,1774407041025,-514.34144085,0.00013617,2]
[408896481,1774407041035,-514.34144085,0.00013617,2]
[408896482,1774407041044,-514.34144085,0.00013617,2]
[408896483,1774407041054,-514.34144085,0.00013617,2]
[408896484,1774407041063,-514.34144085,0.00013617,2]
[408896485,1774407041073,-514.34144085,0.00013617,2]
[408896486,1774407041082,-514.34144085,0.00013617,2]
[408896487,1774407041091,-514.34144085,0.00013617,2]
[408896488,1774407041101,-514.34144085,0.00013617,2]
[408896489,1774407041110,-514.34144085,0.00013617,2]
[408896490,1774407041119,-514.34144085,0.00013617,2]
[408896491,1774407041129,-514.34144085,0.00013617,2]
[408896492,1774407041138,-514.34144085,0.00013617,2]
[408896493,1774407041147,-514.34144085,0.00013617,2]
[408896494,1774407041157,-514.34144085,0.00013617,2]
[408896495,1774407041167,-514.34144085,0.00013617,2]
[408896496,1774407041177,-514.34144085,0.00013617,2]
[408896497,1774407041186,-514.34144085,0.00013617,2]
[408896498,1774407041196,-500.0,0.00013617,2]
[408896499,1774407041205,-500.0,0.00013617,2]
[408896500,1774407041214,-500.0,0.00013617,2]
[408896501,1774407041223,-500.0,0.00013617,2]
[408896502,1774407041232,-500.0,0.00013617,2]
[408896503,1774407041242,-500.0,0.00013617,2]
[408896504,1774407041251,-500.0,0.00013617,2]
[408896505,1774407041261,-500.0,0.00013617,2]
[408896506,1774407041270,-500.0,0.00013617,2]
[408896507,1774407041280,-500.0,0.00013617,2]
[408896508,1774407041290,-500.0,0.00013617,2]
[408896509,1774407041300,-500.0,0.00013617,2]
[408896510,1774407041310,-500.0,0.00013617,2]
[408896511,1774407041319,-500.0,0.00013617,2]
[408896512,1774407041329,-500.0,0.00013617,2]
[408896513,1774407041338,-500.0,0.00013617,2]
[408896514,1774407041347,-500.0,0.00013617,2]
[408896515,1774407041357,-500.0,0.00013617,2]
[408896516,1774407041366,-500.0,0.00013617,2]
[408896517,1774407041376,-500.0,0.00013617,2]
[408896518,1774407041385,-500.0,0.00013617,2]
[408896519,1774407041394,-498.49701254,0.00013617,2]
[408896520,1774407041405,-500.0,0.00013617,2]
[408896521,1774407041416,-500.0,0.00013617,2]
[408896522,1774407041427,-500.0,0.00013617,2]
[408896523,1774407041437,-491.38472441,0.00013617,2]
[408896524,1774407041447,-500.0,0.00013617,2]
[408896525,1774407041458,-531.08846791,0.00013617,2]
[408896526,1774407041468,-500.0,0.00013617,2]
[408896527,1774407041478,-157.42138461,0.00013617,2]
[408896528,1774407041488,-273.76992483,0.00013617,2]
[408896529,1774407041498,-500.0,0.00013617,2]
[408896530,1774407041507,-500.0,0.00013617,2]
[408896531,1774407041517,-355.10271573,0.00013617,2]
[408896532,1774407041528,-32991.3775,0.00013618,2]
[408896533,1774407041539,-431006.5349,0.00013618,2]
[408896534,1774407041550,-120491.8553,0.00013618,2]
[408896535,1774407041561,-500.0,0.00013673,2]
[408896536,1774407041570,-500.0,0.00013673,2]
[408896537,1774407041579,-500.0,0.00013673,2]
[408896538,1774407041589,-500.0,0.00013673,2]
[408896539,1774407041598,-500.0,0.00013673,2]
[408896540,1774407041607,-500.0,0.00013673,2]
[408896541,1774407041616,-502.68538186,0.00013673,2]
[408896542,1774407041626,-500.0,0.00013673,2]
[408896543,1774407041635,-500.0,0.00013673,2]
[408896544,1774407041647,-500.0,0.00013698,2]
[408896545,1774407041656,-500.0,0.00013698,2]
[408896546,1774407041666,-500.0,0.00013698,2]
[408896547,1774407041675,-500.0,0.00013698,2]
[408896548,1774407041686,-500.0,0.00013698,2]
[408896549,1774407041698,-500.0,0.00013698,2]
[408896550,1774407041714,-343.79810186,0.00013698,2]
[408896551,1774407041724,-500.0,0.00013698,2]
[408896552,1774407041735,-500.0,0.00013698,2]
[408896553,1774407041745,-500.0,0.00013698,2]
[408896554,1774407041754,-500.0,0.00013698,2]
[408896555,1774407041763,-500.0,0.00013698,2]
[408896556,1774407041774,-500.0,0.00013698,2]
[408896557,1774407041785,-500.0,0.00013698,2]
[408896558,1774407041795,-500.0,0.00013698,2]
[408896559,1774407041804,-513.54711721,0.00013698,2]
[408896560,1774407041814,-513.73164511,0.00013698,2]
[408896561,1774407041825,-9999.99,0.00013699,2]
[408896562,1774407041835,-150.0,0.00013699,2]
[408896563,1774407041845,-150.0,0.00013699,2]
[408896564,1774407041854,-164.85,0.00013699,2]
[408896565,1774407041864,-1816.47,0.00013699,2]
[408896566,1774407041874,-500.0,0.00013699,2]
[408896567,1774407041884,-1569.24,0.00013699,2]
[408896568,1774407041895,-14574.38,0.00013699,2]
[408896569,1774407041906,-1189.64,0.00013699,2]
[408896570,1774407041916,-2173.14,0.00013699,2]
[408896571,1774407041929,-174043.68,0.00013699,2]
[408896572,1774407041939,-9999.99,0.00013699,2]
[408896573,1774407041949,-1548.06,0.00013699,2]
[408896574,1774407041958,-4999.99,0.00013699,2]
[408896575,1774407041967,-9999.99,0.00013699,2]
[408896576,1774407041976,-4145.47,0.00013699,2]
[408896577,1774407041985,-150.0,0.000137,2]
[408896578,1774407041994,-500.0,0.00013718,2]
[408896579,1774407042003,-500.0,0.00013718,2]
[408896580,1774407042012,-500.0,0.00013718,2]
[408896581,1774407042021,-500.0,0.00013718,2]
[408896582,1774407042031,-11692.8278668,0.00013727,2]
[408896583,1774407042040,-1924.6975755,0.00013727,2]
[408896584,1774407042049,-7740.3624824,0.00013783,2]
[408896585,1774407042059,-13583.51646297,0.00013783,2]
[408896586,1774407042068,-323.9640678,0.00013846,2]
[408896587,1774407042078,-1202.0,0.00013885,2]
[408896588,1774407042087,-329.77,0.00013891,2]
[408896589,1774407042097,-543.98,0.00013891,2]
[408896590,1774407042106,-500.0,0.000139,5]
[408896591,1774407042116,-329.0,0.00013993,2]
[408896592,1774407042125,-508.0,0.00014,2]
[408896593,1774407042134,-486.0,0.00014,2]
[408896594,1774407042144,-383.0,0.00014018,2]
[408896595,1774407042153,-472.0,0.00014018,2]
[408896596,1774407042163,-799.0,0.00014028,2]
[408896597,1774407042172,-500.0,0.00014032,2]
[408896598,1774407042181,-500.0,0.00014032,2]
[408896599,1774407042190,-500.0,0.00014032,2]
[408896600,1774407042200,-500.0,0.00014032,2]
[408896601,1774407042209,-168.39,0.00014042,2]
[408896602,1774407042218,-291.58746921,0.00014046,2]
[408896603,1774407042229,-7740.3624824,0.00014047,2]
[408896604,1774407042238,-13583.51646297,0.00014047,2]
[408896605,1774407042249,-166.66,0.00014068,2]
[408896606,1774407042259,-800.0,0.00014082,2]
[408896607,1774407042268,-1077.59,0.000141,2]
[408896608,1774407042278,-500.0,0.00014133,2]
[408896609,1774407042287,-638.95886171,0.00014133,2]
[408896610,1774407042296,-500.0,0.00014133,2]
[408896611,1774407042306,-500.0,0.00014133,2]
[408896612,1774407042316,-500.0,0.00014133,2]
[408896613,1774407042325,-500.0,0.00014133,2]
[408896614,1774407042335,-200.0,0.00014158,2]
[408896615,1774407042344,-543.98,0.00014165,2]
[408896616,1774407042353,-420.0,0.00014197,2]
[408896617,1774407042362,-930.54660974,0.00014221,2]
[408896618,1774407042371,-1000.0,0.00014221,2]
[408896619,1774407042381,-1000.0,0.00014221,2]
[408896620,1774407042390,-1000.0,0.00014221,2]
[408896621,1774407042400,-1000.0,0.00014221,2]
[408896622,1774407042409,-1680.0,0.00014239,2]
[408896623,1774407042418,-500.0,0.00014311,2]
[408896624,1774407042427,-500.0,0.00014311,2]
[408896625,1774407042436,-564.13343492,0.00014312,2]
[408896626,1774407042484,-644.20590704,0.00014312,2]
[408896627,1774407042853,-2813.02656103,0.0001289,2]
[408896631,1774407043083,-17434.65343897,0.0001289,2]
[408896633,1774407043093,-6532.02314044,0.00014312,2]
[408896635,1774407043102,-13583.51646297,0.00014312,2]
[408896637,1774407043111,-500.0,0.00014329,2]
[408896639,1774407043119,-500.0,0.00014355,2]
[408896641,1774407043129,-1300.0,0.00014356,2]
[408896643,1774407043138,-1816.47,0.00014384,2]
[408896645,1774407043147,-4125.25,0.000144,2]
[408896647,1774407043156,-3164.72,0.000144,2]
[408896649,1774407043165,-257.07155088,0.00014404,2]
[408896651,1774407043175,-500.0,0.00014413,2]
[408896653,1774407043184,-500.0,0.00014413,2]
[408896655,1774407043194,-1500.0,0.00014414,2]
[408896657,1774407043204,-543.98,0.00014439,2]
[408896659,1774407043213,-500.0,0.00014449,2]
[408896662,1774407043222,-500.0,0.00014449,2]
[408896664,1774407043231,-748.81299812,0.00014477,2]
[408896667,1774407043240,-7740.3624824,0.00014577,2]
[408896670,1774407043249,-13583.51646297,0.00014577,2]
[408896672,1774407043258,-151.0,0.00014577,2]
[408896674,1774407043268,-151.0,0.00014577,2]
[408896676,1774407043276,-151.0,0.00014577,2]
[408896677,1774407043286,-154.102073,0.00014577,2]
[408896678,1774407043294,-151.0,0.00014577,2]
[408896679,1774407043303,-151.0,0.00014577,2]
[408896680,1774407043312,-3319.08,0.000146,2]
[408896681,1774407043321,-329.77,0.00014622,2]
[408896682,1774407043330,-255.0,0.00014625,2]
[408896683,1774407043339,-500.0,0.00014685,2]
[408896684,1774407043349,-200.0,0.00014706,2]
[408896685,1774407043359,-543.98,0.00014713,2]
[408896686,1774407043368,-748.81299809,0.00014714,2]
[408896687,1774407043379,-1500.0,0.00014768,2]
[408896688,1774407043388,-1500.0,0.00014768,2]
[408896689,1774407043397,-1500.0,0.00014768,2]
[408896690,1774407043406,-1000.0,0.00014768,2]
[408896691,1774407043415,-166.66,0.00014801,2]
[408896692,1774407043424,-1600.0,0.00014827,2]
[408896693,1774407043433,-7740.3624824,0.00014841,2]
[408896694,1774407043442,-13583.51646297,0.00014841,2]
[408896696,1774407043451,-250.0,0.0001487,2]
[408896698,1774407043460,-500.0,0.00014889,2]
[408896699,1774407043469,-500.0,0.00014889,2]
[408896700,1774407043478,-500.0,0.00014889,2]
[408896701,1774407043487,-505.4071129,0.00014889,2]
[408896702,1774407043496,-1000.0,0.000149,5]
[408896703,1774407043505,-748.81299809,0.00014951,2]
[408896704,1774407043515,-154.26142664,0.00014962,2]
[408896705,1774407043524,-391.79519,0.00014981,7]
[408896706,1774407043533,-543.99409955,0.00014987,2]
[408896707,1774407043542,-500.0,0.00015,2]
[408896708,1774407043550,-500.0,0.00015,2]
[408896709,1774407043559,-500.0,0.00015,2]
[408896710,1774407043568,-500.0,0.00015,2]
[408896711,1774407043578,-500.0,0.00015,2]
[408896712,1774407043587,-500.0,0.00015,2]
[408896713,1774407043596,-500.0,0.00015,2]
[408896714,1774407043605,-500.0,0.00015,2]
[408896715,1774407043614,-500.0,0.00015,2]
[408896716,1774407043623,-500.0,0.00015,2]
[408896717,1774407043632,-500.0,0.00015,2]
[408896718,1774407043642,-500.0,0.00015,2]
[408896719,1774407043652,-513.53,0.00015,2]
[408896720,1774407043662,-300.0,0.00015,2]
[408896721,1774407043671,-197.2193,0.00015,2]
[408896722,1774407043681,-150.0,0.00015032,2]
[408896723,1774407043691,-825.768001,0.00015036,2]
[408896724,1774407043703,-825.768001,0.00015036,2]
[408896725,1774407043716,-825.768001,0.00015036,2]
[408896726,1774407043728,-825.768001,0.00015036,2]
[408896727,1774407043739,-578.20924308,0.00015067,2]
[408896728,1774407043751,-151.0,0.00015067,2]
[408896729,1774407043760,-721.12765535,0.00015067,2]
[408896730,1774407043769,-500.0,0.00015067,2]
[408896731,1774407043778,-9552.16786547,0.00015067,2]
[408896732,1774407043788,-500.0,0.00015067,2]
[408896733,1774407043797,-500.0,0.00015067,2]
[408896734,1774407043806,-500.0,0.00015067,2]
[408896735,1774407043816,-500.0,0.00015067,2]
[408896736,1774407043826,-500.0,0.00015067,2]
[408896737,1774407043836,-500.0,0.00015067,2]
[408896738,1774407043845,-500.0,0.00015067,2]
[408896739,1774407043854,-500.0,0.00015067,2]
[408896740,1774407043865,-500.0,0.00015067,2]
[408896741,1774407043875,-500.0,0.00015067,2]
[408896742,1774407043887,-500.0,0.00015067,2]
[408896743,1774407043898,-500.0,0.00015067,2]
[408896744,1774407043909,-500.0,0.00015067,2]
[408896745,1774407043919,-500.0,0.00015067,2]
[408896746,1774407043929,-500.0,0.00015067,2]
[408896747,1774407043937,-500.0,0.00015067,2]
[408896748,1774407043946,-500.0,0.00015067,2]
[408896749,1774407043956,-500.0,0.00015067,2]
[408896750,1774407043965,-500.0,0.00015067,2]
[408896751,1774407043974,-500.0,0.00015067,2]
[408896752,1774407043983,-500.0,0.00015067,2]
[408896753,1774407043991,-500.0,0.00015067,2]
[408896754,1774407044000,-500.0,0.00015067,2]
[408896755,1774407044009,-500.0,0.00015067,2]
[408896756,1774407044018,-174.61919141,0.00015067,2]
[408896757,1774407044027,-500.0,0.00015067,2]
[408896758,1774407044035,-151.0,0.00015067,2]
[408896759,1774407044046,-500.0,0.00015067,2]
[408896760,1774407044055,-500.0,0.00015067,2]
[408896761,1774407044064,-500.0,0.00015067,2]
[408896762,1774407044073,-500.0,0.00015067,2]
[408896763,1774407044082,-500.0,0.00015067,2]
[408896764,1774407044092,-500.0,0.00015067,2]
[408896765,1774407044102,-500.0,0.00015067,2]
[408896766,1774407044113,-500.0,0.00015067,2]
[408896767,1774407044124,-200.0,0.00015067,2]
[408896768,1774407044134,-693.3919763,0.00015067,2]
[408896769,1774407044144,-250.0,0.00015067,2]
[408896770,1774407044156,-250.0,0.00015067,2]
[408896771,1774407044167,-209.40437684,0.00015067,2]
[408896772,1774407044177,-250.0,0.00015067,2]
[408896773,1774407044187,-151.08524853,0.00015067,2]
[408896774,1774407044197,-250.0,0.00015067,2]
[408896775,1774407044208,-250.0,0.00015067,2]
[408896776,1774407044218,-250.0,0.00015067,2]
[408896777,1774407044228,-262.90206542,0.00015067,2]
[408896778,1774407044239,-250.0,0.00015067,2]
[408896779,1774407044248,-250.0,0.00015067,2]
[408896780,1774407044258,-279.9045709,0.00015067,2]
[408896781,1774407044267,-250.0,0.00015067,2]
[408896782,1774407044277,-250.0,0.00015067,2]
[408896783,1774407044288,-250.0,0.00015067,2]
[408896784,1774407044297,-743.50770149,0.00015067,2]
[408896785,1774407044306,-209.40437684,0.00015067,2]
[408896786,1774407044316,-500.0,0.00015067,2]
[408896787,1774407044325,-500.0,0.00015067,2]
[408896788,1774407044335,-500.0,0.00015067,2]
[408896789,1774407044344,-500.0,0.00015067,2]
[408896790,1774407044353,-500.0,0.00015067,2]